[Event "Charlotte Fall IM-D 2023"]
[Site "Charlotte"]
[Date "2023.11.18"]
[Round "3.1"]
[White "Matta, Nicholas"]
[Black "Marek, Matyas"]
[Result "1-0"]
[ECO "E01"]
[WhiteElo "2287"]
[BlackElo "2343"]
[Annotator "RC"]
[PlyCount "143"]
[EventDate "2023.11.17"]
[EventType "tourn"]
[EventCountry "USA"]
[SourceTitle "playchess.com"]
[Source "ChessBase"]
[SourceQuality "1"]
[TimeControl "5400+30"]

1. d4 {[%emt 0:00:36]} Nf6 {[%emt 0:00:06]} 2. Nf3 {[%emt 0:00:09]} e6 {[%emt 0:00:05]} 3. c4 {[%emt 0:02:11]} c5 {[%emt 0:00:07]} 4. g3 {[%emt 0:00:14]} cxd4 {[%emt 0:00:04]} 5. Nxd4 {[%emt 0:00:07]} d5 {[%emt 0:00:04]} 6. Bg2 {[%emt 0:00:22]} e5 {[%emt 0:00:05]} 7. Nf3 {[%emt 0:00:10]} d4 {[%emt 0:00:04]} 8. O-O {[%emt 0:00:23]} Nc6 {[%emt 0:00:07]} 9. e3 {[%emt 0:00:21]} Be7 {[%emt 0:00:06]} 10. exd4 {[%emt 0:00:48]} exd4 {[%emt 0:00:06]} 11. Bf4 {[%emt 0:02:54]} O-O {[%emt 0:00:10]} 12. Re1 {[%emt 0:00:41]} Re8 {[%emt 0:08:01]} 13. Ne5 {[%emt 0:09:43]} Qb6 {[%emt 0:01:28]} 14. Nd2 {[%emt 0:13:39]} Be6 {[%emt 0:03:00]} 15. Qb3 {[%emt 0:01:58]} Rac8 {[%emt 0:22:03]} 16. Ndf3 {[%emt 0:10:20]} Bb4 {[%emt 0:03:33]} 17. Bd2 {[%emt 0:09:57]} Nxe5 {[%emt 0:11:19]} 18. Rxe5 {[%emt 0:00:49]} Bc5 {[%emt 0:00:21]} 19. h3 {[%emt 0:12:10]} Nd7 {[%emt 0:14:21]} 20. Ree1 {[%emt 0:02:18]} Qa6 {[%emt 0:06:24]} 21. Ng5 {[%emt 0:02:10]} Bb6 {[%emt 0:10:57]} 22. Qc2 {[%emt 0:04:10]} Nf8 {[%emt 0:04:06]} 23. Nxe6 {[%emt 0:00:58]} Nxe6 {[%emt 0:01:11]} 24. b3 {[%emt 0:01:19]} Red8 {[%emt 0:05:16]} 25. Qf5 {[%emt 0:02:16]} g6 {[%emt 0:00:10]} 26. Qf6 {[%emt 0:05:07]} Re8 {[%emt 0:02:09]} 27. Bd5 {[%emt 0:02:04]} Bd8 {[%emt 0:05:12]} 28. Qf3 {[%emt 0:00:34]} Rc7 {[%emt 0:00:07]} 29. h4 {[%emt 0:02:15]} b5 {[%emt 0:00:21]} 30. Bf4 {[%emt 0:01:08]} Rc5 {[%emt 0:00:31]} 31. Be5 {[%emt 0:02:46]} bxc4 {[%emt 0:00:40]} 32. Bxd4 {[%emt 0:03:46]} Ra5 {[%emt 0:01:04]} 33. Bxc4 {[%emt 0:00:32]} Qd6 {[%emt 0:00:08]} 34. Bb2 {[%emt 0:00:21]} Rf5 {[%emt 0:00:08]} 35. Qc3 {[%emt 0:00:15]} Bf6 {[%emt 0:00:13]} 36. Qc2 {[%emt 0:00:56]} Kg7 {[%emt 0:01:47]} 37. Rad1 {[%emt 0:01:33]} Qb6 {[%emt 0:00:37]} 38. Bxf6+ {[%emt 0:01:26]} Rxf6 {[%emt 0:00:09]} 39. Qb2 {[%emt 0:00:17]} Rd8 {[%emt 0:03:05]} 40. Rxd8 {[%emt 0:02:27]} Nxd8 {[%emt 0:00:01]} 41. g4 {[%emt 0:00:32]} Kf8 {[%emt 0:00:25]} 42. g5 {[%emt 0:00:17]} Qb4 {[%emt 0:00:52]} 43. Qe5 {[%emt 0:01:17]} Re6 {[%emt 0:00:19]} 44. Bxe6 {[%emt 0:00:47]} Nxe6 {[%emt 0:00:01]} 45. Re4 {[%emt 0:02:30]} Qd2 {[%emt 0:00:40]} 46. Qh8+ {[%emt 0:00:15]} Ke7 {[%emt 0:00:04]} 47. Qf6+ {[%emt 0:00:01]} Ke8 {[%emt 0:00:08]} 48. Rxe6+ {[%emt 0:00:56]} fxe6 {[%emt 0:00:02]} 49. Qxe6+ {[%emt 0:00:01]} Kf8 {[%emt 0:00:17]} 50. Qc8+ {[%emt 0:00:06]} Kf7 {[%emt 0:00:12]} 51. Qb7+ {[%emt 0:00:18]} Ke6 {[%emt 0:00:40]} 52. Qc6+ {[%emt 0:02:27]} Kf7 {[%emt 0:00:31]} 53. Qc4+ {[%emt 0:00:08]} Ke7 {[%emt 0:00:31]} 54. Qc5+ {[%emt 0:00:22]} Kd8 {[%emt 0:00:33]} 55. Qf8+ {[%emt 0:00:48]} Kc7 {[%emt 0:00:12]} 56. Qe7+ {[%emt 0:00:13]} Kb8 {[%emt 0:00:16]} 57. Qe5+ {[%emt 0:00:27]} Kb7 {[%emt 0:00:11]} 58. Qe4+ {[%emt 0:00:11]} Kb8 {[%emt 0:00:07]} 59. Qc4 {[%emt 0:00:34]} Qd7 {[%emt 0:00:45]} 60. a4 {[%emt 0:00:11]} Qe7 {[%emt 0:00:11]} 61. b4 {[%emt 0:00:17]} Qe1+ {[%emt 0:02:20]} 62. Kg2 {[%emt 0:00:05]} Qd1 {[%emt 0:00:05]} 63. a5 {[%emt 0:00:17]} a6 {[%emt 0:00:16]} 64. Qg8+ {[%emt 0:00:35]} Kb7 {[%emt 0:00:11]} 65. Qxh7+ {[%emt 0:00:06]} Kb8 {[%emt 0:00:12]} 66. Qg8+ {[%emt 0:00:12]} Kb7 {[%emt 0:00:05]} 67. Qf7+ {[%emt 0:00:07]} Kb8 {[%emt 0:00:07]} 68. Qf8+ {[%emt 0:00:06]} Kc7 {[%emt 0:00:31]} 69. Qf7+ {[%emt 0:00:15]} Kb8 {[%emt 0:00:12]} 70. Qf4+ {[%emt 0:00:29]} Kc8 {[%emt 0:00:17]} 71. Qf3 {[%emt 0:00:34]} Qd4 {[%emt 0:00:34]} 72. Qc6+ {[%emt 0:00:04]} 1-0

[Event "Charlotte Fall IM-D 2023"]
[Site "Charlotte"]
[Date "2023.11.18"]
[Round "3.2"]
[White "Eckert, Doug"]
[Black "Karthik, Advaith"]
[Result "1-0"]
[ECO "A14"]
[WhiteElo "2120"]
[BlackElo "2156"]
[Annotator "ChessBase"]
[PlyCount "95"]
[EventDate "2023.11.17"]
[EventType "tourn"]
[EventCountry "USA"]
[SourceTitle "playchess.com"]
[Source "ChessBase"]
[SourceQuality "1"]
[TimeControl "5400+30"]

1. c4 {[%emt 0:02:24]} Nf6 {[%emt 0:10:48]} 2. Nf3 {[%emt 0:00:07]} e6 {[%emt 0:00:18]} 3. g3 {[%emt 0:00:11]} d5 {[%emt 0:00:11]} 4. Bg2 {[%emt 0:00:02]} Be7 {[%emt 0:00:05]} 5. O-O {[%emt 0:00:06]} O-O {[%emt 0:00:15]} 6. b3 {[%emt 0:00:05]} d4 {[%emt 0:00:43]} 7. e3 {[%emt 0:01:49]} c5 {[%emt 0:00:23]} 8. Ne5 {[%emt 0:00:55]} Nfd7 {[%emt 0:01:29]} 9. exd4 {[%emt 0:05:01]} cxd4 {[%emt 0:01:12]} 10. Nd3 {[%emt 0:01:49]} Nc6 {[%emt 0:01:18]} 11. Ba3 {[%emt 0:02:09]} a5 {[%emt 0:04:37]} 12. Re1 {[%emt 0:16:52]} Nb4 {[%emt 0:03:05]} 13. Nxb4 {[%emt 0:02:01]} axb4 {[%emt 0:00:37]} 14. Bb2 {[%emt 0:00:06]} Nc5 {[%emt 0:00:17]} 15. d3 {[%emt 0:00:13]} Qb6 {[%emt 0:10:41]} 16. Qc2 {[%emt 0:09:43]} Bf6 {[%emt 0:04:30]} 17. Nd2 {[%emt 0:00:15]} Bd7 {[%emt 0:06:06]} 18. a4 {[%emt 0:12:09]} Bc6 {[%emt 0:09:45]} 19. Bxc6 {[%emt 0:00:06]} Qxc6 {[%emt 0:00:42]} 20. Ne4 {[%emt 0:00:11]} Nxe4 {[%emt 0:02:53]} 21. Rxe4 {[%emt 0:00:06]} Rfd8 {[%emt 0:00:19]} 22. Rae1 {[%emt 0:02:09]} Ra5 {[%emt 0:00:44]} 23. Qd2 {[%emt 0:02:44]} Qb6 {[%emt 0:01:46]} 24. Qd1 {[%emt 0:01:25]} h5 {[%emt 0:01:03]} 25. h4 {[%emt 0:05:37]} g6 {[%emt 0:03:40]} 26. Bc1 {[%emt 0:00:23]} Rf5 {[%emt 0:07:58]} 27. Bf4 {[%emt 0:01:58]} Rc8 {[%emt 0:05:49]} 28. Be5 {[%emt 0:02:42]} Bxe5 {[%emt 0:00:08]} 29. Rxe5 {[%emt 0:00:04]} Rc5 {[%emt 0:00:20]} 30. Rxf5 {[%emt 0:09:27]} Rxf5 {[%emt 0:00:08]} 31. f4 {[%emt 0:00:31]} Qc6 {[%emt 0:01:46]} 32. Re4 {[%emt 0:00:28]} Ra5 {[%emt 0:03:26]} 33. Qe1 {[%emt 0:02:35]} Ra8 {[%emt 0:04:02]} 34. Kf2 {[%emt 0:02:56]} Qd6 {[%emt 0:03:03]} 35. Re5 {[%emt 0:00:50]} b6 {[%emt 0:02:14]} 36. Rb5 {[%emt 0:03:23]} Qc6 {[%emt 0:02:54]} 37. Qe4 {[%emt 0:00:08]} Rc8 {[%emt 0:00:11]} 38. Qxc6 {[%emt 0:00:13]} Rxc6 {[%emt 0:00:01]} 39. Rxb4 {[%emt 0:00:28]} Kf8 {[%emt 0:00:18]} 40. Rb5 {[%emt 0:00:04]} Ke7 {[%emt 0:00:31]} 41. b4 {[%emt 0:02:20]} Kd7 {[%emt 0:00:25]} 42. a5 {[%emt 0:00:33]} bxa5 {[%emt 0:00:01]} 43. Rxa5 {[%emt 0:00:06]} Rb6 {[%emt 0:00:08]} 44. Ra7+ {[%emt 0:00:48]} Kc6 {[%emt 0:00:02]} 45. b5+ {[%emt 0:00:45]} Kc5 {[%emt 0:00:01]} 46. Rxf7 {[%emt 0:00:30]} Kb4 {[%emt 0:00:01]} 47. Kf3 {[%emt 0:00:26]} Kc3 {[%emt 0:00:05]} 48. Ke4 {[%emt 0:00:17]} 1-0

[Event "Charlotte Fall IM-D 2023"]
[Site "Charlotte"]
[Date "2023.11.18"]
[Round "3.3"]
[White "Wan, Joseph"]
[Black "Dukic, Zachary"]
[Result "1/2-1/2"]
[ECO "D06"]
[WhiteElo "2242"]
[BlackElo "2233"]
[Annotator "RC"]
[PlyCount "97"]
[EventDate "2023.11.17"]
[EventType "tourn"]
[EventCountry "USA"]
[SourceTitle "playchess.com"]
[Source "ChessBase"]
[SourceQuality "1"]
[TimeControl "5400+30"]

1. d4 {[%emt 0:11:49]} Nf6 {[%emt 0:00:07]} 2. Nf3 {[%emt 0:00:04]} d5 {[%emt 0:00:07]} 3. Bf4 {[%emt 0:00:11]} Bf5 {[%emt 0:00:06]} 4. c4 {[%emt 0:00:07]} e6 {[%emt 0:00:04]} 5. Nc3 {[%emt 0:01:37]} dxc4 {[%emt 0:00:11]} 6. e3 {[%emt 0:00:56]} Nd5 {[%emt 0:00:08]} 7. Bxc4 {[%emt 0:02:45]} Nxf4 {[%emt 0:00:09]} 8. exf4 {[%emt 0:00:03]} c6 {[%emt 0:00:10]} 9. Ne5 {[%emt 0:02:58]} Bd6 {[%emt 0:03:50]} 10. O-O {[%emt 0:04:08]} O-O {[%emt 0:02:10]} 11. Re1 {[%emt 0:00:54]} Nd7 {[%emt 0:00:36]} 12. Qb3 {[%emt 0:02:39]} Nb6 {[%emt 0:01:04]} 13. Bf1 {[%emt 0:03:37]} a5 {[%emt 0:03:37]} 14. a3 {[%emt 0:02:59]} a4 {[%emt 0:06:37]} 15. Qd1 {[%emt 0:00:57]} Bc7 {[%emt 0:00:52]} 16. g3 {[%emt 0:02:47]} Qd6 {[%emt 0:01:11]} 17. Ne4 {[%emt 0:07:24]} Bxe4 {[%emt 0:12:00]} 18. Rxe4 {[%emt 0:00:17]} Rfd8 {[%emt 0:03:23]} 19. Nf3 {[%emt 0:03:18]} Nd7 {[%emt 0:03:42]} 20. Qc2 {[%emt 0:05:05]} Nf6 {[%emt 0:02:48]} 21. Ree1 {[%emt 0:01:04]} Ba5 {[%emt 0:06:03]} 22. Red1 {[%emt 0:03:51]} Bb6 {[%emt 0:00:13]} 23. Bg2 {[%emt 0:42:30]} Ra5 {[%emt 0:00:51]} 24. Rac1 {[%emt 0:00:00]} Qb8 {[%emt 0:00:45]} 25. b4 {[%emt 0:00:00]} axb3 {[%emt 0:00:56]} 26. Qxb3 {[%emt 0:00:00]} Qa7 {[%emt 0:01:17]} 27. Rb1 {[%emt 0:00:00]} Rb5 {[%emt 0:03:40]} 28. Qa2 {[%emt 0:00:00]} Rxb1 {[%emt 0:09:53]} 29. Qxb1 {[%emt 0:00:00]} g6 {[%emt 0:03:12]} 30. h3 {[%emt 0:00:00]} Rd5 {[%emt 0:02:09]} 31. Rd3 {[%emt 0:00:00]} Rb5 {[%emt 0:03:15]} 32. Rb3 {[%emt 0:00:00]} Rxb3 {[%emt 0:00:09]} 33. Qxb3 {[%emt 0:00:00]} Nd5 {[%emt 0:00:26]} 34. Bf1 {[%emt 0:00:00]} Kg7 {[%emt 0:05:08]} 35. Kg2 {[%emt 0:00:00]} Ne7 {[%emt 0:01:48]} 36. Bd3 {[%emt 0:00:00]} Bc7 {[%emt 0:09:42]} 37. a4 {[%emt 0:00:00]} Bb6 {[%emt 0:00:37]} 38. Qb2 {[%emt 0:00:00]} Nd5 {[%emt 0:01:41]} 39. Bc4 {[%emt 0:00:00]} Nf6 {[%emt 0:01:51]} 40. Bf1 {[%emt 0:01:41]} Kg8 {[%emt 0:03:49]} 41. Bd3 {[%emt 0:00:32]} Ba5 {[%emt 0:00:35]} 42. Qe2 {[%emt 0:01:55]} Bc7 {[%emt 0:01:07]} 43. Bc4 {[%emt 0:01:06]} Nd5 {[%emt 0:03:02]} 44. Bxd5 {[%emt 0:00:12]} cxd5 {[%emt 0:00:06]} 45. Qb5 {[%emt 0:00:11]} Qb8 {[%emt 0:01:02]} 46. h4 {[%emt 0:01:38]} Kg7 {[%emt 0:01:13]} 47. Ng5 {[%emt 0:00:55]} h6 {[%emt 0:00:24]} 48. Nf3 {[%emt 0:00:17]} Bd6 {[%emt 0:00:47]} 49. Ne5 {[%emt 0:01:48]} 1/2-1/2

[Event "Charlotte Fall IM-D 2023"]
[Site "Charlotte"]
[Date "2023.11.18"]
[Round "3.5"]
[White "Leiva, Gianmarco"]
[Black "Ansh M Shah"]
[Result "1-0"]
[ECO "A48"]
[WhiteElo "2403"]
[BlackElo "2169"]
[Annotator "RC"]
[PlyCount "129"]
[EventDate "2023.11.17"]
[EventType "tourn"]
[EventCountry "USA"]
[SourceTitle "playchess.com"]
[Source "ChessBase"]
[SourceQuality "1"]
[TimeControl "5400+30"]

1. d4 {[%emt 0:09:17]} Nf6 {[%emt 0:00:11]} 2. Nf3 {[%emt 0:00:37]} g6 {[%emt 0:00:17]} 3. Bg5 {[%emt 0:00:16]} Bg7 {[%emt 0:00:31]} 4. c3 {[%emt 0:00:13]} O-O {[%emt 0:01:04]} 5. Nbd2 {[%emt 0:00:13]} c5 {[%emt 0:02:16]} 6. e3 {[%emt 0:00:31]} b6 {[%emt 0:01:49]} 7. Bd3 {[%emt 0:11:28]} Bb7 {[%emt 0:07:24]} 8. Qe2 {[%emt 0:09:20]} d5 {[%emt 0:06:36]} 9. Ne5 {[%emt 0:05:47]} Nfd7 {[%emt 0:13:29]} 10. Nxd7 {[%emt 0:13:01]} Nxd7 {[%emt 0:01:53]} 11. O-O {[%emt 0:03:29]} Bf6 {[%emt 0:07:24]} 12. Bxf6 {[%emt 0:05:25]} exf6 {[%emt 0:06:21]} 13. Qg4 {[%emt 0:21:38]} Qe7 {[%emt 0:08:50]} 14. Rae1 {[%emt 0:02:33]} Rad8 {[%emt 0:15:55]} 15. Qf4 {[%emt 0:02:40]} Rfe8 {[%emt 0:11:18]} 16. g4 {[%emt 0:04:22]} Nf8 {[%emt 0:01:25]} 17. Bb5 {[%emt 0:01:26]} Nd7 {[%emt 0:05:24]} 18. Qc7 {[%emt 0:02:41]} Nb8 {[%emt 0:01:00]} 19. Qg3 {[%emt 0:00:16]} Bc6 {[%emt 0:00:52]} 20. Bd3 {[%emt 0:00:15]} Qd6 {[%emt 0:01:17]} 21. Kg2 {[%emt 0:00:37]} Qxg3+ {[%emt 0:01:30]} 22. hxg3 {[%emt 0:00:33]} Kg7 {[%emt 0:00:21]} 23. Rh1 {[%emt 0:00:47]} Nd7 {[%emt 0:00:46]} 24. f4 {[%emt 0:02:01]} Re7 {[%emt 0:01:22]} 25. Kf2 {[%emt 0:00:34]} Nf8 {[%emt 0:00:38]} 26. Be2 {[%emt 0:00:32]} Ne6 {[%emt 0:00:39]} 27. Bf3 {[%emt 0:00:27]} Rc7 {[%emt 0:00:20]} 28. Ra1 {[%emt 0:01:18]} a5 {[%emt 0:00:17]} 29. a4 {[%emt 0:00:33]} Rb7 {[%emt 0:02:48]} 30. Ra2 {[%emt 0:01:09]} Nc7 {[%emt 0:00:40]} 31. Rc1 {[%emt 0:00:56]} Na6 {[%emt 0:00:34]} 32. Be2 {[%emt 0:00:49]} Nc7 {[%emt 0:00:16]} 33. b4 {[%emt 0:00:24]} axb4 {[%emt 0:00:50]} 34. cxb4 {[%emt 0:00:02]} c4 {[%emt 0:00:01]} 35. Bf3 {[%emt 0:00:31]} Rd6 {[%emt 0:01:02]} 36. b5 {[%emt 0:00:13]} Be8 {[%emt 0:00:29]} 37. Nxc4 {[%emt 0:00:10]} Rd8 {[%emt 0:00:07]} 38. Nxb6 {[%emt 0:01:08]} Nxb5 {[%emt 0:00:14]} 39. Nxd5 {[%emt 0:00:09]} Ra7 {[%emt 0:00:17]} 40. Nb4 {[%emt 0:01:06]} Nd6 {[%emt 0:00:41]} 41. a5 {[%emt 0:00:33]} f5 {[%emt 0:00:34]} 42. gxf5 {[%emt 0:00:15]} Nxf5 {[%emt 0:00:36]} 43. Nc6 {[%emt 0:00:53]} Bxc6 {[%emt 0:00:28]} 44. Rxc6 {[%emt 0:00:13]} Re8 {[%emt 0:00:20]} 45. Rc3 {[%emt 0:00:11]} h5 {[%emt 0:00:32]} 46. a6 {[%emt 0:01:09]} Re6 {[%emt 0:00:20]} 47. Be2 {[%emt 0:00:36]} Rb6 {[%emt 0:00:39]} 48. Rac2 {[%emt 0:00:23]} Rbxa6 {[%emt 0:01:15]} 49. Bxa6 {[%emt 0:00:09]} Rxa6 {[%emt 0:00:03]} 50. Kf3 {[%emt 0:01:41]} Ra1 {[%emt 0:00:07]} 51. Rd3 {[%emt 0:00:00]} Rg1 {[%emt 0:00:45]} 52. Rg2 {[%emt 0:00:00]} Rf1+ {[%emt 0:00:19]} 53. Ke2 {[%emt 0:00:06]} Ra1 {[%emt 0:00:11]} 54. e4 {[%emt 0:01:11]} Nh6 {[%emt 0:01:03]} 55. d5 {[%emt 0:00:14]} Kf8 {[%emt 0:00:16]} 56. d6 {[%emt 0:00:02]} Ke8 {[%emt 0:00:10]} 57. Kf3 {[%emt 0:00:13]} Ng4 {[%emt 0:00:54]} 58. Rc2 {[%emt 0:00:21]} Kd7 {[%emt 0:00:51]} 59. Rc7+ {[%emt 0:00:15]} Kd8 {[%emt 0:00:01]} 60. Rxf7 {[%emt 0:00:16]} Ra2 {[%emt 0:01:23]} 61. e5 {[%emt 0:00:06]} Ke8 {[%emt 0:00:29]} 62. d7+ {[%emt 0:01:22]} Kxf7 {[%emt 0:00:09]} 63. d8=Q {[%emt 0:00:14]} Rf2+ {[%emt 0:00:41]} 64. Ke4 {[%emt 0:00:01]} Re2+ {[%emt 0:00:01]} 65. Kd4 {[%emt 0:00:00]} 1-0

[Event "Charlotte Fall IM-D 2023"]
[Site "Charlotte"]
[Date "2023.11.19"]
[Round "4.1"]
[White "Marek, Matyas"]
[Black "Ansh M Shah"]
[Result "1-0"]
[ECO "B19"]
[WhiteElo "2343"]
[BlackElo "2169"]
[Annotator "RC"]
[PlyCount "85"]
[EventDate "2023.11.17"]
[EventType "tourn"]
[EventCountry "USA"]
[SourceTitle "playchess.com"]
[Source "ChessBase"]
[SourceQuality "1"]
[TimeControl "5400+30"]

1. e4 {[%emt 0:00:13]} c6 {[%emt 0:01:30]} 2. d4 {[%emt 0:00:06]} d5 {[%emt 0:00:08]} 3. Nc3 {[%emt 0:00:03]} dxe4 {[%emt 0:00:11]} 4. Nxe4 {[%emt 0:00:04]} Bf5 {[%emt 0:02:05]} 5. Ng3 {[%emt 0:00:10]} Bg6 {[%emt 0:00:05]} 6. h4 {[%emt 0:00:15]} h6 {[%emt 0:00:17]} 7. Nf3 {[%emt 0:00:14]} Nd7 {[%emt 0:00:21]} 8. h5 {[%emt 0:00:05]} Bh7 {[%emt 0:00:07]} 9. Bd3 {[%emt 0:00:03]} Bxd3 {[%emt 0:00:07]} 10. Qxd3 {[%emt 0:00:15]} e6 {[%emt 0:01:47]} 11. Bf4 {[%emt 0:01:51]} Qa5+ {[%emt 0:01:18]} 12. Bd2 {[%emt 0:00:22]} Bb4 {[%emt 0:00:59]} 13. Ne4 {[%emt 0:07:53]} Ngf6 {[%emt 0:04:31]} 14. Nd6+ {[%emt 0:01:30]} Ke7 {[%emt 0:00:02]} 15. Nc4 {[%emt 0:17:18]} Bxd2+ {[%emt 0:01:10]} 16. Nfxd2 {[%emt 0:00:05]} Qc7 {[%emt 0:05:48]} 17. O-O-O {[%emt 0:02:01]} b5 {[%emt 0:02:55]} 18. Ne3 {[%emt 0:06:06]} Rhc8 {[%emt 0:08:03]} 19. g4 {[%emt 0:04:45]} Qf4 {[%emt 0:06:31]} 20. Rh3 {[%emt 0:02:05]} c5 {[%emt 0:05:04]} 21. d5 {[%emt 0:02:40]} Qd4 {[%emt 0:16:00]} 22. Qe2 {[%emt 0:02:52]} Kf8 {[%emt 0:04:18]} 23. dxe6 {[%emt 0:10:15]} fxe6 {[%emt 0:00:17]} 24. Nf3 {[%emt 0:04:51]} Qf4 {[%emt 0:04:18]} 25. Rg1 {[%emt 0:01:09]} Ne5 {[%emt 0:02:45]} 26. g5 {[%emt 0:02:15]} hxg5 {[%emt 0:00:49]} 27. Nxg5 {[%emt 0:00:10]} Ke7 {[%emt 0:01:01]} 28. Nf3 {[%emt 0:01:37]} Kf7 {[%emt 0:03:42]} 29. Nxe5+ {[%emt 0:08:17]} Qxe5 {[%emt 0:00:02]} 30. Rhg3 {[%emt 0:00:24]} Rg8 {[%emt 0:29:19]} 31. Rg5 {[%emt 0:00:26]} Qd4 {[%emt 0:00:00]} 32. Rd1 {[%emt 0:06:57]} Qf4 {[%emt 0:00:00]} 33. Rxc5 {[%emt 0:01:00]} a6 {[%emt 0:00:00]} 34. Rc6 {[%emt 0:04:19]} Rgc8 {[%emt 0:00:00]} 35. Rcd6 {[%emt 0:01:43]} Rc7 {[%emt 0:00:00]} 36. Kb1 {[%emt 0:00:19]} Qe4 {[%emt 0:00:00]} 37. R6d4 {[%emt 0:04:53]} Qe5 {[%emt 0:00:00]} 38. Qf3 {[%emt 0:00:31]} Re8 {[%emt 0:00:00]} 39. h6 {[%emt 0:00:21]} g5 {[%emt 0:00:00]} 40. Qh3 {[%emt 0:06:21]} Kg6 {[%emt 0:00:00]} 41. f4 {[%emt 0:02:23]} gxf4 {[%emt 0:00:00]} 42. Ng2 {[%emt 0:00:14]} Qf5 {[%emt 0:04:36]} 43. Nh4+ {[%emt 0:00:06]} 1-0

[Event "Charlotte Fall IM-D 2023"]
[Site "Charlotte"]
[Date "2023.11.19"]
[Round "4.2"]
[White "Girsh, Daniel"]
[Black "Leiva, Gianmarco"]
[Result "0-1"]
[ECO "E49"]
[WhiteElo "2221"]
[BlackElo "2403"]
[Annotator "RC"]
[PlyCount "64"]
[EventDate "2023.11.17"]
[EventType "tourn"]
[EventCountry "USA"]
[SourceTitle "playchess.com"]
[Source "ChessBase"]
[SourceQuality "1"]
[TimeControl "5400+30"]

1. d4 {[%emt 0:01:31]} Nf6 {[%emt 0:05:15]} 2. c4 {[%emt 0:00:06]} e6 {[%emt 0:00:26]} 3. Nc3 {[%emt 0:00:10]} Bb4 {[%emt 0:00:07]} 4. e3 {[%emt 0:00:06]} O-O {[%emt 0:01:04]} 5. Bd3 {[%emt 0:00:07]} d5 {[%emt 0:00:59]} 6. a3 {[%emt 0:00:07]} Bxc3+ {[%emt 0:00:08]} 7. bxc3 {[%emt 0:00:07]} dxc4 {[%emt 0:00:10]} 8. Bxc4 {[%emt 0:00:04]} c5 {[%emt 0:00:07]} 9. Ne2 {[%emt 0:00:17]} Qc7 {[%emt 0:04:12]} 10. Bd3 {[%emt 0:00:57]} e5 {[%emt 0:04:13]} 11. O-O {[%emt 0:13:04]} Nc6 {[%emt 0:04:08]} 12. Bb2 {[%emt 0:00:41]} Rd8 {[%emt 0:07:55]} 13. Rc1 {[%emt 0:01:28]} Be6 {[%emt 0:04:53]} 14. f4 {[%emt 0:12:57]} e4 {[%emt 0:08:33]} 15. Bb1 {[%emt 0:11:20]} Ng4 {[%emt 0:03:16]} 16. Bxe4 {[%emt 0:04:20]} f5 {[%emt 0:00:14]} 17. Bxc6 {[%emt 0:03:23]} Nxe3 {[%emt 0:00:12]} 18. Qd3 {[%emt 0:00:19]} Nxf1 {[%emt 0:00:24]} 19. Ba4 {[%emt 0:06:34]} c4 {[%emt 0:02:03]} 20. Qf3 {[%emt 0:00:31]} Nd2 {[%emt 0:00:09]} 21. Qe3 {[%emt 0:00:04]} Ne4 {[%emt 0:00:44]} 22. Ng3 {[%emt 0:00:02]} Bd7 {[%emt 0:05:51]} 23. Nxe4 {[%emt 0:03:21]} Bxa4 {[%emt 0:02:18]} 24. Ng5 {[%emt 0:01:02]} Re8 {[%emt 0:00:29]} 25. Qf3 {[%emt 0:03:34]} Bc6 {[%emt 0:02:19]} 26. Qf2 {[%emt 0:02:15]} h6 {[%emt 0:05:09]} 27. Nh3 {[%emt 0:00:04]} Re4 {[%emt 0:00:13]} 28. Re1 {[%emt 0:00:41]} Rxe1+ {[%emt 0:00:49]} 29. Qxe1 {[%emt 0:00:05]} Re8 {[%emt 0:00:05]} 30. Qf1 {[%emt 0:00:20]} Qf7 {[%emt 0:00:57]} 31. Bc1 {[%emt 0:00:35]} Qd5 {[%emt 0:01:15]} 32. Bd2 {[%emt 0:00:05]} Re6 {[%emt 0:37:53]} 0-1

[Event "Charlotte Fall IM-D 2023"]
[Site "Charlotte"]
[Date "2023.11.19"]
[Round "4.3"]
[White "Dukic, Zachary"]
[Black "Andrianov, Nikolay"]
[Result "1-0"]
[ECO "C11"]
[WhiteElo "2233"]
[BlackElo "1816"]
[Annotator "RC"]
[PlyCount "115"]
[EventDate "2023.11.17"]
[EventType "tourn"]
[EventCountry "USA"]
[SourceTitle "playchess.com"]
[Source "ChessBase"]
[SourceQuality "1"]
[TimeControl "5400+30"]

1. e4 {[%emt 0:00:03]} e6 {[%emt 0:01:40]} 2. d4 {[%emt 0:00:07]} d5 {[%emt 0:00:04]} 3. Nc3 {[%emt 0:00:07]} Nf6 {[%emt 0:00:05]} 4. e5 {[%emt 0:00:05]} Nfd7 {[%emt 0:00:04]} 5. f4 {[%emt 0:00:07]} c5 {[%emt 0:00:12]} 6. Nf3 {[%emt 0:00:07]} Nc6 {[%emt 0:00:12]} 7. Be3 {[%emt 0:00:07]} cxd4 {[%emt 0:01:15]} 8. Nxd4 {[%emt 0:00:08]} Bc5 {[%emt 0:00:20]} 9. Qd2 {[%emt 0:00:08]} Nxd4 {[%emt 0:00:53]} 10. Bxd4 {[%emt 0:00:07]} Bxd4 {[%emt 0:00:04]} 11. Qxd4 {[%emt 0:00:09]} Qb6 {[%emt 0:00:03]} 12. Nb5 {[%emt 0:00:48]} Qxd4 {[%emt 0:00:19]} 13. Nxd4 {[%emt 0:00:07]} Ke7 {[%emt 0:00:37]} 14. h4 {[%emt 0:04:26]} Nc5 {[%emt 0:10:30]} 15. h5 {[%emt 0:01:32]} h6 {[%emt 0:00:14]} 16. Rh3 {[%emt 0:00:26]} Bd7 {[%emt 0:00:19]} 17. Bd3 {[%emt 0:05:24]} Rac8 {[%emt 0:03:22]} 18. Ke2 {[%emt 0:11:57]} a6 {[%emt 0:02:52]} 19. Rg3 {[%emt 0:00:59]} Rhg8 {[%emt 0:01:29]} 20. Rh1 {[%emt 0:02:39]} Bb5 {[%emt 0:23:34]} 21. Ke3 {[%emt 0:17:47]} Bxd3 {[%emt 0:01:16]} 22. cxd3 {[%emt 0:00:08]} Nd7 {[%emt 0:02:10]} 23. Rf1 {[%emt 0:18:53]} f5 {[%emt 0:21:19]} 24. Rh3 {[%emt 0:04:41]} g5 {[%emt 0:01:13]} 25. hxg6 {[%emt 0:00:31]} Rxg6 {[%emt 0:00:06]} 26. Rfh1 {[%emt 0:01:14]} Rxg2 {[%emt 0:04:06]} 27. Rxh6 {[%emt 0:00:14]} Nf8 {[%emt 0:00:19]} 28. Rh7+ {[%emt 0:08:46]} Nxh7 {[%emt 0:00:21]} 29. Rxh7+ {[%emt 0:00:10]} Ke8 {[%emt 0:01:09]} 30. Rh8+ {[%emt 0:00:01]} Kd7 {[%emt 0:00:15]} 31. Rh7+ {[%emt 0:00:02]} Ke8 {[%emt 0:00:10]} 32. Nxe6 {[%emt 0:04:40]} Rxb2 {[%emt 0:00:51]} 33. Nc7+ {[%emt 0:00:13]} Kd8 {[%emt 0:01:32]} 34. Ne6+ {[%emt 0:00:06]} Ke8 {[%emt 0:00:06]} 35. Nc7+ {[%emt 0:00:02]} Kd8 {[%emt 0:00:06]} 36. Nxd5 {[%emt 0:03:44]} Rc6 {[%emt 0:04:05]} 37. Rf7 {[%emt 0:02:04]} a5 {[%emt 0:13:15]} 38. Rxf5 {[%emt 0:00:31]} Rxa2 {[%emt 0:02:59]} 39. Rf8+ {[%emt 0:00:20]} Kd7 {[%emt 0:00:01]} 40. f5 {[%emt 0:00:23]} Ra1 {[%emt 0:01:28]} 41. Rf7+ {[%emt 0:03:52]} Kc8 {[%emt 0:01:33]} 42. e6 {[%emt 0:02:25]} Rxe6+ {[%emt 0:00:12]} 43. fxe6 {[%emt 0:00:11]} Re1+ {[%emt 0:00:02]} 44. Kd4 {[%emt 0:00:13]} Rxe6 {[%emt 0:00:03]} 45. Kc5 {[%emt 0:00:40]} Rc6+ {[%emt 0:00:25]} 46. Kb5 {[%emt 0:00:32]} Rd6 {[%emt 0:00:08]} 47. Rf5 {[%emt 0:04:28]} Kd7 {[%emt 0:00:59]} 48. d4 {[%emt 0:00:11]} Ke6 {[%emt 0:00:27]} 49. Re5+ {[%emt 0:00:02]} Kd7 {[%emt 0:00:17]} 50. Nb6+ {[%emt 0:01:23]} Kc7 {[%emt 0:00:12]} 51. Rc5+ {[%emt 0:00:34]} Kd8 {[%emt 0:00:23]} 52. d5 {[%emt 0:01:51]} Rh6 {[%emt 0:01:03]} 53. Rc8+ {[%emt 0:00:32]} Ke7 {[%emt 0:00:04]} 54. Kc5 {[%emt 0:00:26]} a4 {[%emt 0:00:25]} 55. d6+ {[%emt 0:01:46]} Rxd6 {[%emt 0:00:19]} 56. Nd5+ {[%emt 0:00:06]} Ke6 {[%emt 0:01:03]} 57. Re8+ {[%emt 0:00:06]} Kf7 {[%emt 0:00:27]} 58. Re7+ {[%emt 0:00:05]} 1-0